bitfinex/quotes_SOLUSD_20241125
["timestamp","ask_amount","ask_price","bid_price","bid_amount"]
[1732572173942,30.0,238.15,238.1,20.34200296]
[1732572174141,31.2597,238.15,238.1,20.34200296]
[1732572174343,1.2597,238.15,238.08,33.05405057]
[1732572174559,1.2597,238.15,238.07,20.0]
[1732572174560,1.2597,238.15,238.1,33.05405057]
[1732572175361,1.2596,238.17,238.1,33.05405057]
[1732572175863,1.2596,238.17,238.12,33.05405057]
[1732572176236,1.2596,238.17,238.14,33.05405057]
[1732572177451,4.4074,238.23,238.14,33.05405057]
[1732572177958,4.4074,238.23,238.16,33.05405057]
[1732572178263,30.0,238.17,238.16,33.05405057]
[1732572179663,1.2595,238.18,238.16,33.05405057]
[1732572180564,1.2595,238.18,238.12,33.05405057]
[1732572180741,34.31355057,238.18,238.1,33.05405057]
[1732572180941,37.46235057,238.18,238.08,33.05405057]
[1732572181178,37.46235057,238.18,238.1,33.05405057]
[1732572181380,33.05405057,238.16,238.08,33.05405057]
[1732572181550,30.0,238.15,238.06,33.05405057]
[1732572181745,30.0,238.15,237.98,31.1709]
[1732572181746,33.05405057,238.12,238.04,33.05405057]
[1732572182043,8.7584,238.14,238.08,33.05405057]
[1732572182457,8.7584,238.14,237.98,26.5826]
[1732572182458,30.0,238.15,238.12,33.05405057]
[1732572182643,30.0,238.13,238.12,33.05405057]
[1732572183953,1.2597,238.15,238.12,33.05405057]
[1732572184259,1.2592,238.24,238.14,33.05405057]
[1732572184467,33.05405057,238.17,238.09,33.05405057]
[1732572184653,33.05405057,238.17,238.07,23.776884]
[1732572184654,33.05405057,238.15,238.07,33.05405057]
[1732572184852,33.05405057,238.11,238.03,33.05405057]
[1732572185154,1.2599,238.1,238.03,33.05405057]
[1732572185480,4.4098,238.1,238.03,33.05405057]
[1732572185643,33.05405057,238.05,237.97,33.05405057]
[1732572186063,33.05405057,238.03,237.95,33.05405057]
[1732572186273,33.05405057,238.09,238.01,33.05405057]
[1732572186646,33.05405057,238.09,237.92,4.203]
[1732572186647,33.05405057,238.05,237.97,33.05405057]
[1732572187274,1.2602,238.04,237.97,33.05405057]
[1732572187796,33.05405057,238.02,237.94,33.05405057]
[1732572187971,33.05405057,237.99,237.92,33.05405057]
[1732572188288,33.05405057,237.93,237.79,52.2395763]
[1732572188577,33.05405057,237.9,237.82,33.05405057]
[1732572188777,33.05405057,237.9,237.81,33.05405057]
[1732572189275,33.05405057,237.9,237.82,33.05405057]
[1732572189475,34.31505057,237.9,237.83,33.05405057]
[1732572189659,34.31505057,237.9,237.78,33.05405057]
[1732572189858,34.31505057,237.9,237.81,33.05405057]
[1732572190067,34.31505057,237.9,237.82,33.05405057]
[1732572190259,34.31505057,237.9,237.8,33.05405057]
[1732572190781,25.77030635,238.61,237.72,33.05405057]
[1732572190782,3.1498,238.11,237.9,4.2034]
[1732572190965,1.26,238.09,238.03,33.05405057]
[1732572191161,1.2597,238.15,238.07,33.05405057]
[1732572191481,42.05725057,238.21,238.12,33.05405057]
[1732572191656,1.2594,238.19,238.12,33.05405057]
[1732572191858,1.2594,238.19,238.1,33.05405057]
[1732572192271,1.2592,238.24,238.18,33.05405057]
[1732572192459,1.2592,238.24,238.09,23.776884]
[1732572192460,1.2589,238.3,238.23,33.05405057]
[1732572192972,1.2589,238.3,238.25,33.05405057]
[1732572193482,33.05405057,238.35,238.25,33.05405057]
[1732572193483,1.2587,238.34,238.25,33.05405057]
[1732572193780,1.2587,238.34,238.29,33.05405057]
[1732572194158,1.2587,238.34,238.27,33.05405057]
[1732572194378,33.05405057,238.33,238.25,33.05405057]
[1732572194677,33.05405057,238.27,238.17,33.05405057]
[1732572194984,43.05405057,238.32,238.17,33.05405057]
[1732572194985,33.05405057,238.25,238.17,33.05405057]
[1732572195163,33.05405057,238.23,238.15,33.05405057]
[1732572195351,1.2593,238.22,238.13,33.05405057]
[1732572195557,33.05405057,238.19,238.11,33.05405057]
[1732572195858,1.2593,238.22,238.15,33.05405057]
[1732572196355,33.05405057,238.21,238.13,33.05405057]
[1732572196560,1.2593,238.22,238.13,33.05405057]
[1732572196765,1.2593,238.22,238.17,33.05405057]
[1732572196981,1.2593,238.22,238.15,33.05405057]
[1732572197189,1.2593,238.22,238.19,33.05405057]
[1732572197352,1.2591,238.26,238.19,33.05405057]
[1732572197555,4.4069,238.26,238.19,33.05405057]
[1732572198689,33.05405057,238.25,238.17,33.05405057]
[1732572198866,4.4069,238.26,238.19,33.05405057]
[1732572199264,33.05405057,238.23,238.15,33.05405057]
[1732572199562,33.05405057,238.21,238.13,33.05405057]
[1732572200565,33.05405057,238.21,238.11,33.05405057]
[1732572200888,33.05405057,238.21,238.13,33.05405057]
[1732572201689,1.2594,238.2,238.19,33.05405057]
[1732572202488,1.2594,238.2,238.04,4.2008]
[1732572202668,34.31345057,238.2,238.12,33.05405057]
[1732572202856,1.2594,238.2,238.16,33.05405057]
[1732572203060,1.2594,238.2,238.14,33.05405057]
[1732572204685,3.1484,238.21,238.14,33.05405057]
[1732572204887,1.2592,238.23,238.2,33.05405057]
[1732572205192,1.2592,238.23,238.18,33.05405057]
[1732572205896,1.2592,238.23,238.16,33.05405057]
[1732572206082,33.05405057,238.26,238.16,33.05405057]
[1732572206083,4.407,238.25,238.16,33.05405057]
[1732572206273,4.407,238.25,238.18,33.05405057]
[1732572206892,20.0,238.23,238.15,33.05405057]
[1732572207097,23.776884,238.21,238.13,33.05405057]
[1732572207405,33.05405057,238.2,238.13,33.05405057]
[1732572207774,33.05405057,238.18,238.1,33.05405057]
[1732572207982,33.05405057,238.22,238.14,33.05405057]
[1732572208302,1.2592,238.24,238.18,33.05405057]
[1732572208469,1.2591,238.26,238.2,33.05405057]
[1732572208670,1.2591,238.26,238.22,33.05405057]
[1732572208887,1.259,238.28,238.22,33.05405057]
[1732572209087,1.259,238.28,238.24,33.05405057]
[1732572209272,1.259,238.28,238.13,23.776884]
[1732572209273,1.259,238.28,238.22,33.05405057]
[1732572209970,1.2589,238.3,238.24,33.05405057]
[1732572210974,1.2589,238.3,238.22,33.05405057]
[1732572211192,1.2589,238.3,238.15,24.027864]
[1732572211193,33.05405057,238.29,238.2,33.05405057]
[1732572211793,1.2589,238.3,238.22,33.05405057]
[1732572212699,1.2589,238.3,238.24,33.05405057]
[1732572213200,1.2589,238.3,238.22,33.05405057]
[1732572213405,33.05405057,238.29,238.2,33.05405057]
[1732572213779,33.05405057,238.29,238.14,4.32469]
[1732572213780,1.2589,238.3,238.22,33.05405057]
[1732572214387,33.05405057,238.29,238.22,33.05405057]
[1732572214999,1.259,238.28,238.22,33.05405057]
[1732572215323,33.05405057,238.27,238.18,33.05405057]
[1732572215807,33.05405057,238.27,238.2,33.05405057]
[1732572216511,1.259,238.28,238.2,33.05405057]
[1732572216678,33.05405057,238.26,238.17,33.05405057]
[1732572216878,33.05405057,238.3,238.21,33.05405057]
[1732572217177,34.31285057,238.32,238.23,33.05405057]
[1732572217796,33.05405057,238.3,238.21,33.05405057]
[1732572218011,33.05405057,238.26,238.17,33.05405057]
[1732572218189,33.05405057,238.24,238.17,33.05405057]
[1732572218712,1.2589,238.3,238.23,33.05405057]
[1732572219207,33.05405057,238.29,238.19,33.05405057]
[1732572219384,33.05405057,238.29,238.21,33.05405057]
[1732572219589,4.4061,238.3,238.21,33.05405057]
[1732572220389,1.2589,238.3,238.21,33.05405057]
[1732572220908,33.05405057,238.29,238.21,33.05405057]
[1732572221211,33.05405057,238.29,238.19,33.05405057]
[1732572221811,33.05405057,238.2,238.07,4.2004]
[1732572221988,33.05405057,238.16,238.06,33.05405057]
[1732572222188,33.05405057,238.16,238.08,33.05405057]
[1732572222592,33.05405057,238.16,238.06,33.05405057]
[1732572222828,33.05405057,238.14,238.06,33.05405057]
[1732572222991,33.05405057,238.1,238.01,33.05405057]
[1732572223322,33.05405057,238.12,238.03,33.05405057]
[1732572223507,1.2597,238.15,238.07,33.05405057]
[1732572223807,1.2597,238.15,237.96,33.68413048]
[1732572223808,1.2596,238.17,238.09,33.05405057]
[1732572224009,1.2596,238.17,238.11,33.05405057]
[1732572224214,33.05405057,238.13,238.0,20.0]
[1732572224412,33.05405057,238.13,238.05,33.05405057]
[1732572224622,33.05405057,238.13,237.97,23.902374]
[1732572224623,9.75997406,238.17,238.07,33.05405057]
[1732572224787,9.75997406,238.17,238.09,33.05405057]
[1732572225118,41.92675057,238.21,238.11,33.05405057]
[1732572225303,41.92675057,238.21,238.13,33.05405057]
[1732572225499,10.132,238.21,238.15,33.05405057]
[1732572225703,43.18605057,238.21,238.13,33.05405057]
[1732572225922,43.18605057,238.21,237.92,4.203]
[1732572225923,20.0,238.1,237.92,4.203]
[1732572226223,33.05405057,237.94,237.81,10.5125]
[1732572226418,33.05405057,237.94,237.84,37.25845057]
[1732572226791,33.05405057,237.94,237.84,33.05405057]
[1732572226993,33.05405057,237.94,237.84,37.25845057]
[1732572227291,1.2608,237.94,237.84,33.05405057]
[1732572227493,34.31485057,237.94,237.86,33.05405057]
[1732572227693,20.0,238.0,237.9,33.05405057]
[1732572227694,33.05405057,238.0,237.9,33.05405057]
[1732572227922,33.05405057,238.0,237.84,33.05405057]
[1732572227923,33.05405057,238.0,237.92,33.05405057]
[1732572228289,33.05405057,237.98,237.9,33.05405057]
[1732572228489,33.05405057,238.0,237.9,33.05405057]
[1732572228721,33.05405057,237.98,237.9,33.05405057]
[1732572228903,34.31465057,237.98,237.9,33.05405057]
[1732572229422,33.05405057,237.98,237.9,33.05405057]
[1732572229629,34.31455057,238.0,237.92,33.05405057]
[1732572230003,3.1507,238.04,237.92,33.05405057]
[1732572230004,33.05405057,238.02,237.92,33.05405057]
[1732572230924,33.05405057,238.04,237.96,33.05405057]
[1732572231290,33.05405057,238.06,237.98,33.05405057]
[1732572231495,1.2601,238.07,238.0,33.05405057]
[1732572231789,33.05405057,238.08,238.0,33.05405057]
[1732572231989,1.26,238.09,238.0,33.05405057]
[1732572232210,33.05405057,238.08,238.0,33.05405057]
[1732572233434,34.31415057,238.08,238.0,33.05405057]
[1732572234502,34.31415057,238.08,237.98,33.05405057]
[1732572235008,34.31415057,238.08,238.0,33.05405057]
[1732572235314,33.05405057,238.1,238.03,33.05405057]
[1732572236195,34.31395057,238.1,238.01,33.05405057]
[1732572237628,34.31395057,238.1,238.01,37.25545057]
[1732572237806,8.03644019,238.12,238.08,33.05405057]
[1732572238126,41.09049076,238.12,238.06,20.0]
[1732572238808,8.03644019,238.12,238.06,53.05405057]
[1732572239800,8.03644019,238.12,238.06,33.05405057]
[1732572240007,9.29624019,238.12,238.06,33.05405057]
[1732572240203,8.03644019,238.12,238.06,33.05405057]
[1732572240406,8.03644019,238.12,237.93,10.0]
[1732572240407,33.05405057,238.08,237.98,33.05405057]
[1732572240602,33.05405057,238.06,237.98,33.05405057]
[1732572240798,33.05405057,238.02,237.94,33.05405057]
[1732572241134,34.31455057,238.0,237.92,33.05405057]
[1732572241420,33.05405057,237.98,237.9,33.05405057]
[1732572241644,34.31455057,238.0,237.92,33.05405057]
[1732572242197,33.05405057,238.02,237.94,33.05405057]
[1732572242842,34.31425057,238.04,237.96,33.05405057]
[1732572243207,9.3564,238.28,238.11,0.12549]
[1732572243406,33.05405057,238.27,238.18,33.05405057]
[1732572243608,9.3564,238.28,238.14,20.0]
[1732572243609,33.05405057,238.22,238.14,20.0]
[1732572243808,33.05405057,238.18,238.14,20.0]
[1732572244027,33.05405057,238.2,238.14,20.0]
[1732572244234,33.05405057,238.2,238.1,33.05405057]
[1732572244913,33.05405057,238.2,238.1,37.25385057]
[1732572245132,33.05405057,238.22,238.12,33.05405057]
[1732572245319,33.05405057,238.2,238.1,37.25385057]
[1732572245635,33.05405057,238.2,238.12,33.05405057]
[1732572246133,33.05405057,238.2,238.1,4.1998]
[1732572246338,33.05405057,238.16,238.11,20.0]
[1732572246711,33.05405057,238.18,238.11,20.0]
[1732572247436,33.05405057,238.16,238.08,33.05405057]
[1732572248639,33.05405057,238.22,238.12,33.05405057]
[1732572249425,1.2592,238.23,238.15,33.05405057]
[1732572249710,3.1478,238.26,238.08,33.17954057]
[1732572249711,33.05405057,238.26,238.17,33.05405057]
[1732572250748,1.259,238.27,238.19,33.05405057]
[1732572251041,10.6154,238.28,238.21,33.05405057]
[1732572251339,1.2589,238.3,238.23,33.05405057]
[1732572251516,33.05405057,238.26,238.17,33.05405057]
[1732572251837,33.05405057,238.24,238.15,33.05405057]
[1732572252053,33.05405057,238.22,238.15,33.05405057]
[1732572252235,33.05405057,238.2,238.13,33.05405057]
[1732572252542,33.05405057,238.2,238.11,33.05405057]
[1732572252918,30.0,238.21,238.13,33.05405057]
[1732572253130,30.0,238.21,238.19,33.05405057]
[1732572253329,20.0,238.25,238.19,33.05405057]
[1732572253644,1.2591,238.26,238.19,33.05405057]
[1732572253826,33.05405057,238.3,238.21,33.05405057]
[1732572254028,1.259,238.28,238.23,33.05405057]
[1732572254216,30.0,238.24,238.23,33.05405057]
[1732572254523,1.259,238.28,238.23,33.05405057]
[1732572254932,33.05405057,238.32,238.23,33.05405057]
[1732572255148,33.05405057,238.3,238.23,33.05405057]
[1732572255457,1.2589,238.29,238.21,33.05405057]
[1732572256229,33.05405057,238.24,238.15,33.05405057]
[1732572256656,33.05405057,238.2,238.13,33.05405057]
[1732572257560,34.31345057,238.2,238.13,33.05405057]
[1732572257744,30.0,238.19,238.13,33.05405057]
[1732572259443,30.0,238.19,238.15,33.05405057]
[1732572259753,30.0,238.19,238.17,33.05405057]
[1732572259936,30.0,238.19,238.15,33.05405057]
[1732572262329,30.0,238.19,238.16,20.32993827]
[1732572262661,30.0,238.19,238.13,4.1993]
[1732572262662,30.0,238.19,238.18,20.32993827]
[1732572263149,1.2592,238.25,238.18,20.32993827]
[1732572263456,20.32993827,238.24,238.16,20.32993827]
[1732572264137,3.1477,238.27,238.2,20.32993827]
[1732572264138,1.2591,238.27,238.2,20.32993827]
[1732572264655,1.2591,238.27,238.22,20.32993827]
[1732572264861,1.2591,238.27,238.2,20.32993827]
[1732572265035,20.32993827,238.3,238.22,20.32993827]
[1732572265237,40.3151,238.34,238.18,20.32993827]
[1732572265238,20.32993827,238.28,238.18,20.32993827]
[1732572265446,30.0,238.22,238.16,20.32993827]
[1732572265656,30.0,238.22,238.2,20.32993827]
[1732572266033,1.2589,238.29,238.2,20.32993827]
[1732572266445,20.32993827,238.25,238.18,20.32993827]
[1732572266700,20.32993827,238.25,238.16,20.32993827]
[1732572266846,20.32993827,238.27,238.18,20.32993827]
[1732572267031,20.32993827,238.25,238.18,20.32993827]
[1732572267227,21.58903827,238.27,238.18,24.52833827]
[1732572267432,21.58903827,238.27,238.18,20.32993827]
[1732572268032,20.32993827,238.25,238.16,24.52863827]
[1732572268244,20.32993827,238.27,238.2,20.32993827]
[1732572268444,16.91122483,238.34,238.16,4.1987]
[1732572268445,20.32993827,238.31,238.22,20.32993827]
[1732572268848,7.86122483,238.34,238.28,20.32993827]
[1732572269054,7.86122483,238.34,238.32,20.32993827]
[1732572269272,30.0,238.33,238.32,20.32993827]
[1732572269762,7.86122483,238.34,238.33,4.1958]
[1732572269934,7.86122483,238.34,238.32,20.32993827]
[1732572270238,7.86122483,238.34,238.33,0.12549]
[1732572270434,7.86122483,238.34,238.32,44.85587654]
[1732572270742,8.9087,238.48,238.33,24.027864]
[1732572270949,21.58763827,238.53,238.45,20.32993827]
[1732572271152,7.85547827,238.56,238.42,0.12549]
[1732572271153,30.0,238.46,238.42,0.12549]
[1732572271358,30.0,238.46,238.45,20.0]
[1732572271651,30.0,238.46,238.41,4.1944]
[1732572272153,30.0,238.46,238.4,20.0]
[1732572272554,30.0,238.46,238.45,32.95543527]
[1732572272966,1.2579,238.49,238.4,20.0]
[1732572273258,1.2579,238.49,238.42,32.95543527]
[1732572273432,32.95543527,238.51,238.44,32.95543527]
[1732572273634,34.21323527,238.51,238.44,32.95543527]
[1732572273836,1.2577,238.54,238.48,32.95543527]
[1732572274032,1.2577,238.54,238.5,32.95543527]
[1732572274247,1.2577,238.54,238.48,32.95543527]
[1732572276657,32.95543527,238.53,238.46,32.95543527]
[1732572276850,32.95543527,238.53,238.44,32.95543527]
[1732572277052,1.2577,238.54,238.46,32.95543527]
[1732572277454,1.2577,238.54,238.48,32.95543527]
[1732572277765,9.11297827,238.56,238.48,32.95543527]
[1732572278344,32.95543527,238.55,238.48,32.95543527]
[1732572278746,1.2576,238.54,238.48,32.95543527]
[1732572279076,32.95543527,238.53,238.46,32.95543527]
[1732572279242,32.95543527,238.51,238.42,32.95543527]
[1732572279561,32.95543527,238.43,238.34,32.95543527]
[1732572279869,32.95543527,238.36,238.28,32.95543527]
[1732572280044,32.95543527,238.31,238.24,32.95543527]
[1732572280244,32.95543527,238.29,238.22,32.95543527]
[1732572280438,32.95543527,238.29,238.2,32.95543527]
[1732572280654,32.95543527,238.27,238.2,32.95543527]
[1732572280859,32.95543527,238.23,238.16,32.95543527]
[1732572281147,32.95543527,238.26,238.18,32.95543527]
[1732572281742,9.1347,238.31,238.22,32.95543527]
[1732572281743,32.95543527,238.3,238.22,32.95543527]
[1732572281949,32.95543527,238.26,238.18,32.95543527]
[1732572282746,9.1347,238.31,238.24,32.95543527]
[1732572282949,1.2589,238.3,238.24,32.95543527]
[1732572283146,32.95543527,238.26,238.18,32.95543527]
[1732572283347,34.21433527,238.3,238.22,32.95543527]
[1732572283552,1.2589,238.3,238.24,32.95543527]
[1732572286251,34.21433527,238.3,238.22,32.95543527]
[1732572286668,1.2589,238.3,238.22,32.95543527]
[1732572286884,1.2589,238.3,238.24,32.95543527]
[1732572287179,36.10243527,238.32,238.13,23.902374]
[1732572287180,1.2588,238.32,238.28,32.95543527]
[1732572287664,1.2585,238.37,238.3,32.95543527]
[1732572287853,1.2585,238.37,238.32,32.95543527]
[1732572288047,4.4048,238.37,238.28,32.95543527]
[1732572289072,32.95543527,238.32,238.24,32.95543527]
[1732572289276,32.95543527,238.3,238.22,32.95543527]
[1732572290654,33.776884,238.36,238.22,32.95543527]
[1732572290655,1.2589,238.29,238.22,32.95543527]
[1732572291177,1.2589,238.29,238.24,32.95543527]
[1732572291567,32.95543527,238.3,238.22,32.95543527]
[1732572291759,32.95543527,238.28,238.2,32.95543527]
[1732572293966,1.259,238.27,238.2,32.95543527]
[1732572294386,1.259,238.27,238.2,20.32201115]
[1732572295260,1.259,238.27,238.22,20.32201115]
[1732572296581,25.035784,238.29,238.22,20.32201115]
[1732572297888,25.035784,238.29,238.24,20.32201115]
[1732572298080,1.2589,238.29,238.24,20.32201115]
[1732572298588,3.1471,238.31,238.24,20.32201115]
[1732572298787,4.4059,238.31,238.24,20.32201115]
[1732572300260,20.32201115,238.26,238.18,20.32201115]
[1732572300464,20.32201115,238.28,238.2,20.32201115]
[1732572300664,23.776884,238.27,238.2,20.32201115]
[1732572301582,1.2591,238.26,238.2,20.32201115]
[1732572301896,21.58111115,238.26,238.18,20.32201115]
[1732572302281,1.2591,238.26,238.22,20.32201115]
[1732572302590,3.1476,238.28,238.22,20.32201115]
[1732572303087,23.776884,238.27,238.2,20.32201115]
[1732572304563,31.7673,238.39,238.26,20.32201115]
[1732572304764,1.2585,238.37,238.35,20.32201115]
[1732572304977,23.46761115,238.43,238.35,20.32201115]
[1732572305181,1.2582,238.42,238.38,20.32201115]
[1732572305360,1.2582,238.44,238.38,20.32201115]
[1732572305563,108.17748942,238.56,238.42,20.32201115]
[1732572305564,20.32201115,238.5,238.42,20.32201115]
[1732572305864,20.32201115,238.5,238.4,20.32201115]
[1732572305865,1.258,238.48,238.4,20.32201115]
[1732572306064,20.32201115,238.5,238.42,20.32201115]
[1732572306065,1.2578,238.5,238.42,20.32201115]
[1732572306385,20.32201115,238.44,238.28,20.0]
[1732572306592,20.32201115,238.41,238.32,20.32201115]
[1732572306807,1.2583,238.4,238.32,20.32201115]
[1732572307162,20.32201115,238.39,238.31,20.32201115]
[1732572307364,20.32201115,238.39,238.29,20.32201115]
[1732572307658,29.38901115,238.37,238.3,20.0]
[1732572308169,1.2583,238.4,238.31,20.32201115]
[1732572308376,20.32201115,238.39,238.31,20.32201115]
[1732572308773,1.2584,238.38,238.31,20.32201115]
[1732572309290,20.32201115,238.35,238.27,20.32201115]
[1732572309470,1.2584,238.38,238.17,1.87296846]
[1732572309471,19.82201115,238.31,238.23,20.32201115]
[1732572309873,20.32201115,238.29,238.21,20.32201115]
[1732572310091,20.32201115,238.27,238.19,20.32201115]
[1732572310591,20.32201115,238.25,238.17,20.32201115]
[1732572310795,20.32201115,238.27,238.19,20.32201115]
[1732572311162,20.32201115,238.29,238.19,20.32201115]
[1732572311363,20.32201115,238.29,238.21,20.32201115]
[1732572311594,20.32201115,238.32,238.23,20.32201115]
[1732572312096,1.2587,238.33,238.25,20.32201115]
[1732572313866,20.32201115,238.32,238.15,33.9181]
[1732572314071,20.32201115,238.25,238.17,20.32201115]
[1732572314385,20.32201115,238.29,238.19,20.32201115]
[1732572314564,20.32201115,238.31,238.23,20.32201115]
[1732572314772,23.46881115,238.33,238.23,20.32201115]
[1732572314978,23.46881115,238.33,238.25,20.32201115]
[1732572315174,1.2587,238.34,238.25,20.32201115]
[1732572315581,20.32201115,238.33,238.25,20.32201115]
[1732572316687,1.2588,238.32,238.25,20.32201115]
[1732572317075,20.32201115,238.29,238.19,20.32201115]
[1732572317275,20.32201115,238.27,238.19,20.32201115]
[1732572317491,20.32201115,238.29,238.19,20.32201115]
[1732572317669,20.32201115,238.29,238.21,20.32201115]
[1732572318087,20.32201115,238.31,238.23,20.32201115]
[1732572318288,1.2589,238.3,238.23,20.32201115]
[1732572318677,20.32201115,238.33,238.25,20.32201115]
[1732572318879,1.2588,238.32,238.25,20.32201115]
[1732572319597,20.32201115,238.31,238.23,20.32201115]
[1732572320096,20.32201115,238.27,238.19,20.32201115]
[1732572320487,1.2591,238.26,238.21,20.32201115]
[1732572320668,20.32201115,238.25,238.17,20.32201115]
[1732572321089,1.2591,238.26,238.19,20.32201115]
[1732572321513,1.2591,238.26,238.17,20.32201115]
[1732572321797,20.32201115,238.22,238.13,20.32201115]
[1732572321993,20.32201115,238.24,238.15,20.32201115]
[1732572322302,21.58111115,238.26,238.17,20.32201115]
[1732572322618,20.32201115,238.24,238.15,20.32201115]
[1732572322912,23.776884,238.25,238.17,20.32201115]
[1732572323070,24.72891115,238.26,238.17,20.32201115]
[1732572323071,20.32201115,238.24,238.17,20.32201115]
[1732572323466,24.72891115,238.26,238.17,20.32201115]
[1732572323991,1.2591,238.26,238.21,20.32201115]
[1732572324401,20.32201115,238.3,238.23,20.32201115]
[1732572324570,21.58081115,238.32,238.23,20.32201115]
[1732572324770,1.2587,238.33,238.25,20.32201115]
[1732572324971,1.2587,238.33,238.2,20.32201115]
[1732572324972,1.2587,238.33,238.27,20.32201115]
[1732572325896,21.58041115,238.38,238.29,20.32201115]
[1732572326091,21.58041115,238.38,238.31,20.32201115]
[1732572326291,8.4956,238.39,238.31,20.32201115]
[1732572326473,21.58021115,238.42,238.31,20.0]
[1732572326678,21.58021115,238.42,238.34,20.32201115]
[1732572327799,21.58021115,238.42,238.32,20.32201115]
[1732572328486,21.58021115,238.42,238.31,4.1961]
[1732572328682,20.32201115,238.38,238.3,20.32201115]
[1732572328897,20.32201115,238.34,238.25,20.32201115]
[1732572329106,20.32201115,238.29,238.17,4.1986]
[1732572329286,20.32201115,238.33,238.23,20.32201115]
[1732572329788,1.2588,238.32,238.23,24.51961115]
[1732572329992,1.2583,238.41,238.31,20.32201115]
[1732572330176,1.2583,238.41,238.33,20.32201115]
[1732572331298,20.32201115,238.35,238.28,20.0]
[1732572331913,0.677924,238.34,238.28,20.0]
[1732572332283,1.936624,238.34,238.28,20.0]
[1732572332482,20.32201115,238.33,238.28,20.0]
[1732572332718,1.936624,238.34,238.28,20.0]
[1732572333090,20.32201115,238.33,238.23,4.1974]
[1732572333383,1.936624,238.34,238.19,10.4956]
[1732572333384,20.32201115,238.31,238.21,20.32201115]
[1732572333607,20.32201115,238.31,238.23,20.32201115]
[1732572333806,20.32201115,238.33,238.23,20.32201115]
[1732572334115,21.58071115,238.33,238.24,4.1974]
[1732572334507,21.58071115,238.33,238.25,20.32201115]
[1732572335896,20.32201115,238.29,238.2,20.32201115]
[1732572336222,20.32201115,238.29,238.21,20.32201115]
[1732572336819,30.0,238.3,238.21,20.32201115]
[1732572337287,31.2589,238.3,238.21,24.51981115]
[1732572337491,31.2589,238.3,238.23,20.32201115]
[1732572337792,31.2589,238.3,238.21,24.51981115]
[1732572338993,20.32201115,238.27,238.19,20.32201115]
[1732572339311,30.0,238.28,238.19,24.52031115]
[1732572340212,30.0,238.26,238.19,24.52031115]
[1732572340620,30.0,238.26,238.21,20.32201115]
[1732572340914,30.0,238.26,238.23,20.32201115]
[1732572341093,1.2589,238.3,238.23,20.32201115]
[1732572341904,1.2588,238.32,238.23,24.51961115]
[1732572342514,20.32201115,238.33,238.25,20.32201115]
[1732572342720,28.40021115,238.37,238.29,20.32201115]
[1732572343013,20.32201115,238.35,238.27,20.32201115]
[1732572343190,1.2587,238.34,238.27,20.32201115]
[1732572343624,1.2586,238.36,238.27,24.51891115]
[1732572343914,20.32201115,238.35,238.27,24.51891115]
[1732572344119,20.32201115,238.35,238.28,20.0]
[1732572344716,21.58061115,238.35,238.28,20.0]
[1732572345096,21.58061115,238.35,238.27,24.51891115]
[1732572345622,21.58061115,238.35,238.27,23.84098715]
[1732572347012,8.0782,238.37,238.29,20.32201115]
[1732572347227,20.32201115,238.35,238.27,3.518976]
[1732572347521,20.32201115,238.31,238.26,20.0]
[1732572347721,20.32201115,238.33,238.26,20.0]
[1732572347897,20.32201115,238.33,238.28,20.0]
[1732572348309,20.32201115,238.35,238.28,20.0]
[1732572349197,1.2586,238.36,238.28,20.0]
[1732572349903,20.32201115,238.33,238.25,4.1971]
[1732572350222,20.32201115,238.27,238.18,24.52031115]
[1732572350594,20.32201115,238.29,238.2,20.32201115]
[1732572351303,30.0,238.26,238.2,24.52001115]
[1732572351815,30.0,238.26,238.24,20.32201115]
[1732572352405,1.2587,238.34,238.24,20.32201115]
[1732572352600,1.2587,238.34,238.2,35.01531115]
[1732572352601,1.2587,238.34,238.26,20.32201115]
[1732572352805,20.32201115,238.35,238.26,20.32201115]
[1732572353014,1.2586,238.36,238.28,20.32201115]
[1732572353216,1.2586,238.36,238.28,24.51861115]
[1732572353932,20.32201115,238.37,238.28,24.51861115]
[1732572354431,21.58051115,238.37,238.28,24.51861115]
[1732572354607,20.32201115,238.37,238.28,24.51861115]
[1732572354909,20.32201115,238.37,238.29,40.32201115]
[1732572355301,20.32201115,238.39,238.29,44.51841115]
[1732572355505,20.32201115,238.39,238.29,24.1964]
[1732572355705,20.32201115,238.39,238.26,10.4924]
[1732572355706,20.32201115,238.34,238.22,4.1978]
[1732572355906,20.32201115,238.34,238.25,20.32201115]
[1732572356128,20.32201115,238.32,238.23,20.32201115]
[1732572357231,20.32201115,238.3,238.23,20.32201115]
[1732572357429,1.2589,238.29,238.23,20.32201115]
[1732572357623,1.2589,238.29,238.21,20.32201115]